Departmental family,Entity,Date Paid,Expense type,Expense Area,Supplier,Transaction Number,Amount, Description ,Supplier Type,Expenditure Type
UK Statistics Authority,Office for National Statistics,05-May-16,Contractual Service Payments - IT,Digital Services Technology and Methodology,Cloudera Inc,80556313,"241,542.00",Software upgrade,Large,Programme
UK Statistics Authority,Office for National Statistics,05-May-16,IT Maintenance Hardware       ,Digital Services Technology and Methodology,Computacenter (UK) Limited,80556314,"1,333,073.80",Information Management Services,Large,Programme
UK Statistics Authority,Office for National Statistics,05-May-16,IT Purchases <2k,Business Services and Development,Computacenter (UK) Limited,80556314,426.11,Information Management Services,Large,Programme
UK Statistics Authority,Office for National Statistics,05-May-16,IT Purchases <2k,Census,Computacenter (UK) Limited,80556314,177.59,Information Management Services,Large,Programme
UK Statistics Authority,Office for National Statistics,05-May-16,IT Purchases <2k,Census,Computacenter (UK) Limited,80556314,401.2,Information Management Services,Large,Programme
UK Statistics Authority,Office for National Statistics,05-May-16,IT Purchases <2k,Census,Computacenter (UK) Limited,80556314,578.79,Information Management Services,Large,Programme
UK Statistics Authority,Office for National Statistics,05-May-16,IT Purchases <2k,Data Collection,Computacenter (UK) Limited,80556314,426.11,Information Management Services,Large,Programme
UK Statistics Authority,Office for National Statistics,05-May-16,IT Purchases <2k,Data Collection,Computacenter (UK) Limited,80556314,426.11,Information Management Services,Large,Programme
UK Statistics Authority,Office for National Statistics,05-May-16,IT Purchases <2k,Digital Services Technology and Methodology,Computacenter (UK) Limited,80556314,426.11,Information Management Services,Large,Programme
UK Statistics Authority,Office for National Statistics,05-May-16,IT Purchases <2k,Digital Services Technology and Methodology,Computacenter (UK) Limited,80556314,452.2,Information Management Services,Large,Programme
UK Statistics Authority,Office for National Statistics,05-May-16,IT Purchases <2k,Digital Services Technology and Methodology,Computacenter (UK) Limited,80556314,524.61,Information Management Services,Large,Programme
UK Statistics Authority,Office for National Statistics,05-May-16,IT Purchases <2k,Finance,Computacenter (UK) Limited,80556314,177.59,Information Management Services,Large,Programme
UK Statistics Authority,Office for National Statistics,05-May-16,IT Purchases <2k,Social and Analysis,Computacenter (UK) Limited,80556314,426.11,Information Management Services,Large,Programme
UK Statistics Authority,Office for National Statistics,05-May-16,IT Purchases <2k,Social and Analysis,Computacenter (UK) Limited,80556314,177.59,Information Management Services,Large,Programme
UK Statistics Authority,Office for National Statistics,05-May-16,IT Purchases >2k,Digital Services Technology and Methodology,Computacenter (UK) Limited,80556314,"2,117,273.37",Information Management Services,Large,Programme
UK Statistics Authority,Office for National Statistics,05-May-16,IT Software Maintenance       ,Digital Services Technology and Methodology,Computacenter (UK) Limited,80556314,"41,779.01",Information Management Services,Large,Programme
UK Statistics Authority,Office for National Statistics,05-May-16,PC Purchases <2k Per Item     ,Digital Services Technology and Methodology,Computacenter (UK) Limited,80556314,"54,004.96",Information Management Services,Large,Programme
UK Statistics Authority,Office for National Statistics,05-May-16,Project & Change Flex Fees,Central Policy Secretariat,Computacenter (UK) Limited,80556314,426.11,Information Management Services,Large,Programme
UK Statistics Authority,Office for National Statistics,05-May-16,Project & Change Flex Fees,National Accounts and Economic Statistics,Computacenter (UK) Limited,80556314,426.11,Information Management Services,Large,Programme
UK Statistics Authority,Office for National Statistics,05-May-16,Software Pool 4yr,Digital Services Technology and Methodology,Computacenter (UK) Limited,80556314,"503,050.48",Information Management Services,Large,Programme
UK Statistics Authority,Office for National Statistics,05-May-16,IT Purchases <2k,Digital Services Technology and Methodology,Dell Computer Corp Ltd,80556316,31.98,Infrastructure and software assurance ,Large,Programme
UK Statistics Authority,Office for National Statistics,05-May-16,IT Purchases <2k,Digital Services Technology and Methodology,Dell Computer Corp Ltd,80556316,"6,840.00",Infrastructure and software assurance ,Large,Programme
UK Statistics Authority,Office for National Statistics,05-May-16,PC Purchases <2k Per Item     ,Digital Services Technology and Methodology,Dell Computer Corp Ltd,80556316,"101,455.20",Infrastructure and software assurance ,Large,Programme
UK Statistics Authority,Office for National Statistics,05-May-16,Statistical Services/Surveys  ,Census,Department for Work and Pensions,80556317,687.95,Statistical Services,Large,Programme
UK Statistics Authority,Office for National Statistics,05-May-16,Statistical Services/Surveys  ,Data Collection,Department for Work and Pensions,80556317,"527,504.40",Statistical Services,Large,Programme
UK Statistics Authority,Office for National Statistics,05-May-16,Specialist Contractors IT,Digital Services Technology and Methodology,Indigoblue,80556322,"25,253.46",Information Management Services,Large,Programme
UK Statistics Authority,Office for National Statistics,05-May-16,IT Maintenance Hardware       ,Digital Services Technology and Methodology,Insight Direct,80556323,"43,960.56",Information Management Services,Large,Programme
UK Statistics Authority,Office for National Statistics,05-May-16,IT Purchases >2k,Digital Services Technology and Methodology,Insight Direct,80556323,"64,820.78",Information Management Services,Large,Programme
UK Statistics Authority,Office for National Statistics,05-May-16,IT Software Maintenance       ,Data Collection,Insight Direct,80556323,"85,905.17",Information Management Services,Large,Programme
UK Statistics Authority,Office for National Statistics,05-May-16,IT Software Maintenance       ,Digital Services Technology and Methodology,Insight Direct,80556323,"224,229.84",Information Management Services,Large,Programme
UK Statistics Authority,Office for National Statistics,05-May-16,Contractual Service Payments - Non IT,Social and Analysis,London School of Hygiene & Tropical Medicine,80556324,"48,108.75",Statistical Services,Large,Programme
UK Statistics Authority,Office for National Statistics,05-May-16,Contractual Service Payments - Non IT,Social and Analysis,London School of Hygiene & Tropical Medicine,80556324,"31,318.25",Statistical Services,Large,Programme
UK Statistics Authority,Office for National Statistics,05-May-16,Capitalised Specialist Contractors It,Digital Services Technology and Methodology,Methods Digital Ltd,80556327,902.59,Information Management Services,Large,Programme
UK Statistics Authority,Office for National Statistics,05-May-16,Consultancy - IT,Digital Services Technology and Methodology,Methods Digital Ltd,80556327,"16,758.00",Information Management Services,Large,Programme
UK Statistics Authority,Office for National Statistics,05-May-16,Specialist Contractors IT,Digital Services Technology and Methodology,Methods Digital Ltd,80556327,"91,350.00",Information Management Services,Large,Programme
UK Statistics Authority,Office for National Statistics,05-May-16,Specialist Contractors IT,Digital Services Technology and Methodology,Methods Digital Ltd,80556327,"49,640.40",Information Management Services,Large,Programme
UK Statistics Authority,Office for National Statistics,05-May-16,Specialist Contractors IT,Digital Services Technology and Methodology,Methods Digital Ltd,80556327,"7,804.80",Information Management Services,Large,Programme
UK Statistics Authority,Office for National Statistics,05-May-16,FM Contract Payments,Corporate Support,Mitie Facilities Services Ltd,80556328,"142,935.67", Facilities Management Services ,Large,Programme
UK Statistics Authority,Office for National Statistics,05-May-16,IT Maintenance Hardware       ,Digital Services Technology and Methodology,Oracle Corporation UK Ltd,80556329,"207,210.70",License and Support,Large,Programme
UK Statistics Authority,Office for National Statistics,05-May-16,IT Software Maintenance       ,Digital Services Technology and Methodology,Oracle Corporation UK Ltd,80556329,"1,154,509.43",License and Support,Large,Programme
UK Statistics Authority,Office for National Statistics,05-May-16,Agency Staff,Business Services and Development,Parity Resources Limited,80556331,115.44,Information Management Services,Large,Programme
UK Statistics Authority,Office for National Statistics,05-May-16,Agency Staff,Census,Parity Resources Limited,80556331,"3,477.75",Information Management Services,Large,Programme
UK Statistics Authority,Office for National Statistics,05-May-16,Agency Staff,Digital Services Technology and Methodology,Parity Resources Limited,80556331,"6,036.91",Information Management Services,Large,Programme
UK Statistics Authority,Office for National Statistics,05-May-16,Agency Staff,Social and Analysis,Parity Resources Limited,80556331,"6,760.89",Information Management Services,Large,Programme
UK Statistics Authority,Office for National Statistics,05-May-16,Specialist Contractors IT,Digital Services Technology and Methodology,Parity Resources Limited,80556331,"24,614.74",Information Management Services,Large,Programme
UK Statistics Authority,Office for National Statistics,05-May-16,Specialist Contractors IT,Digital Services Technology and Methodology,Parity Resources Limited,80556331,"59,398.49",Information Management Services,Large,Programme
UK Statistics Authority,Office for National Statistics,05-May-16,Specialist Contractors IT,Digital Services Technology and Methodology,Parity Resources Limited,80556331,"6,264.05",Information Management Services,Large,Programme
UK Statistics Authority,Office for National Statistics,05-May-16,Specialist Contractors Non IT,Census,Parity Resources Limited,80556331,"2,492.82",Information Management Services,Large,Programme
UK Statistics Authority,Office for National Statistics,05-May-16,Specialist Contractors Non IT,Census,Parity Resources Limited,80556331,"15,787.86",Information Management Services,Large,Programme
UK Statistics Authority,Office for National Statistics,05-May-16,Specialist Contractors Non IT,Data Collection,Parity Resources Limited,80556331,"10,581.88",Information Management Services,Large,Programme
UK Statistics Authority,Office for National Statistics,05-May-16,Specialist Contractors Non IT,Digital Services Technology and Methodology,Parity Resources Limited,80556331,783.72,Information Management Services,Large,Programme
UK Statistics Authority,Office for National Statistics,05-May-16,Specialist Contractors Non IT,National Accounts and Economic Statistics,Parity Resources Limited,80556331,"9,784.80",Information Management Services,Large,Programme
UK Statistics Authority,Office for National Statistics,05-May-16,Specialist Contractors IT,Digital Services Technology and Methodology,Sopra Steria,80556332,"17,098.13",Information Management Services,Large,Programme
UK Statistics Authority,Office for National Statistics,05-May-16,Specialist Contractors IT,Digital Services Technology and Methodology,Sopra Steria,80556332,"27,685.35",Information Management Services,Large,Programme
UK Statistics Authority,Office for National Statistics,05-May-16,Specialist Contractors IT,Digital Services Technology and Methodology,Sopra Steria,80556332,"49,525.58",Information Management Services,Large,Programme
UK Statistics Authority,Office for National Statistics,05-May-16,Specialist Contractors IT,Digital Services Technology and Methodology,Sopra Steria,80556332,"13,655.15",Information Management Services,Large,Programme
UK Statistics Authority,Office for National Statistics,05-May-16,IT Purchases <2k,Digital Services Technology and Methodology,Stone Computers,80556333,"25,069.32", Vsphere Upgrade ,Large,Programme
UK Statistics Authority,Office for National Statistics,05-May-16,Specialist Contractors IT,Digital Services Technology and Methodology,Stone Computers,80556333,"3,300.00", Vsphere Upgrade ,Large,Programme
UK Statistics Authority,Office for National Statistics,05-May-16,Furniture Costing >2k (FSMS),Business Services and Development,The Senator Group,80556334,"264,033.77",Provision and Installation of Furniture ,Large,Programme
UK Statistics Authority,Office for National Statistics,05-May-16,Major Works Over 25k         ,Business Services and Development,The Senator Group,80556334,"20,996.90",Provision and Installation of Furniture ,Large,Programme
UK Statistics Authority,Office for National Statistics,05-May-16,Misc Consumables & Equip <2k  ,Central Policy Secretariat,The Senator Group,80556334,576,Provision and Installation of Furniture ,Large,Programme
UK Statistics Authority,Office for National Statistics,05-May-16,Misc Consumables & Equip <2k  ,Digital Services Technology and Methodology,The Senator Group,80556334,"1,796.57",Provision and Installation of Furniture ,Large,Programme
UK Statistics Authority,Office for National Statistics,05-May-16,Office Furniture,Business Services and Development,The Senator Group,80556334,"2,544.96",Provision and Installation of Furniture ,Large,Programme
UK Statistics Authority,Office for National Statistics,05-May-16,Specialist Property Inspect   ,Business Services and Development,The Senator Group,80556334,"17,479.20",Provision and Installation of Furniture ,Large,Programme
UK Statistics Authority,Office for National Statistics,05-May-16,Statistical Services/Surveys  ,National Accounts and Economic Statistics,TNS UK Ltd,80556335,"188,431.20",Statistical Services,Large,Programme
UK Statistics Authority,Office for National Statistics,05-May-16,Postage                       ,Data Collection,UK Mail,80556336,"79,892.27",Outgoing Postage,Large,Programme
UK Statistics Authority,Office for National Statistics,05-May-16,Statistical Services/Surveys  ,National Accounts and Economic Statistics,University of Durham,80556337,"298,958.40",Statistical Services,Large,Programme
UK Statistics Authority,Office for National Statistics,05-May-16,Specialist Contractors IT,Digital Services Technology and Methodology,E Synergy Solutions,80556801,"9,714.00",Information Management Services,SME,Programme
UK Statistics Authority,Office for National Statistics,05-May-16,Specialist Contractors IT,Digital Services Technology and Methodology,E Synergy Solutions,80556801,"12,000.00",Information Management Services,SME,Programme
UK Statistics Authority,Office for National Statistics,05-May-16,Specialist Contractors IT,Digital Services Technology and Methodology,E Synergy Solutions,80556801,"10,560.00",Information Management Services,SME,Programme
UK Statistics Authority,Office for National Statistics,05-May-16,VAT                           ,Corporate Support,HM Revenue & Customs,80556802,"532,662.67",Tax ,Large,Programme
UK Statistics Authority,Office for National Statistics,06-May-16,Childcare Services,Corporate Support,Computershare Voucher Services,80556815,"31,295.87",Childcare Vouchers,Large,Programme
UK Statistics Authority,Office for National Statistics,06-May-16,Childcare Services,Finance,Computershare Voucher Services,80556815,"2,441.08",Childcare Vouchers,Large,Programme
UK Statistics Authority,Office for National Statistics,06-May-16,Travel & Subsistence,Corporate Support,Redfern Travel,80556826,"30,297.97",Travel and Accommodation Booking Service,SME,Programme
UK Statistics Authority,Office for National Statistics,06-May-16,Statistical Services/Surveys  ,Social and Analysis,TNS UK Ltd,80556831,"380,260.80",Statistical Services,Large,Programme
UK Statistics Authority,Office for National Statistics,10-May-16,Consultancy - IT,Digital Services Technology and Methodology,Methods Digital Ltd,80557173,"15,300.00",Information Management Services,Large,Programme
UK Statistics Authority,Office for National Statistics,10-May-16,Specialist Contractors IT,Digital Services Technology and Methodology,Methods Digital Ltd,80557173,"13,192.60",Information Management Services,Large,Programme
UK Statistics Authority,Office for National Statistics,10-May-16,Specialist Contractors IT,Digital Services Technology and Methodology,Methods Professional Services,80557174,"8,278.20",Information Management Services,SME,Programme
UK Statistics Authority,Office for National Statistics,10-May-16,Specialist Contractors Non IT,Finance,Methods Professional Services,80557174,"11,327.40",Information Management Services,SME,Programme
UK Statistics Authority,Office for National Statistics,10-May-16,Specialist Contractors Non IT,Finance,Methods Professional Services,80557174,"11,327.40",Information Management Services,SME,Programme
UK Statistics Authority,Office for National Statistics,10-May-16,Specialist Contractors Non IT,Portfolio Design,Methods Professional Services,80557174,"11,169.00",Information Management Services,SME,Programme
UK Statistics Authority,Office for National Statistics,11-May-16,FM Contract Payments,Corporate Support,Mitie Facilities Services Ltd,80557296,"357,040.70", Facilities Management Services ,Large,Programme
UK Statistics Authority,Office for National Statistics,12-May-16,Procurement Card,Corporate Support,Barclays Bank Plc,30000044,"43,243.67",Multiple Procurement Card Purchases,Large,Programme
UK Statistics Authority,Office for National Statistics,12-May-16,Stationery                    ,Corporate Support,Barclays Bank Plc,30000044,"8,561.35",Multiple Procurement Card Purchases,Large,Programme
UK Statistics Authority,Office for National Statistics,12-May-16,IT Maintenance Hardware       ,Digital Services Technology and Methodology,Computacenter (UK) Limited,80557698,"51,968.49",Information Management Services,Large,Programme
UK Statistics Authority,Office for National Statistics,12-May-16,IT Purchases <2k,Digital Services Technology and Methodology,Computacenter (UK) Limited,80557698,"1,829.73",Information Management Services,Large,Programme
UK Statistics Authority,Office for National Statistics,12-May-16,IT Software Maintenance       ,Digital Services Technology and Methodology,Computacenter (UK) Limited,80557698,"171,918.55",Information Management Services,Large,Programme
UK Statistics Authority,Office for National Statistics,12-May-16,Software Pool 4yr,Digital Services Technology and Methodology,Computacenter (UK) Limited,80557698,"38,195.48",Information Management Services,Large,Programme
UK Statistics Authority,Office for National Statistics,12-May-16,Travel & Subsistence,Corporate Support,Redfern Travel,80557709,"31,952.97",Travel and Accommodation Booking Service,SME,Programme
UK Statistics Authority,Office for National Statistics,13-May-16,IT Bureau Services            ,Digital Services Technology and Methodology,Vodafone Corporate Ltd,80557718,"45,023.26",Information Management Services,Large,Programme
UK Statistics Authority,Office for National Statistics,17-May-16,Telecomms                     ,Digital Services Technology and Methodology,BT Global Services,80558206,"49,210.95",Information Management Services,Large,Programme
UK Statistics Authority,Office for National Statistics,17-May-16,Telecomms                     ,Social and Analysis,BT Global Services,80558206,266.66,Information Management Services,Large,Programme
UK Statistics Authority,Office for National Statistics,19-May-16,Electricity                   ,Property Titchfield,EDF Energy,30000047,"26,225.25", Titchfield Electricity Charges ,Large,Programme
UK Statistics Authority,Office for National Statistics,19-May-16,External Training & Costs     ,Business Services and Development,Cabinet Office,80558702,"2,913.12",Civil Service Senior Leaders Scheme and the Future Leaders Scheme,Large,Programme
UK Statistics Authority,Office for National Statistics,19-May-16,External Training & Costs     ,National Accounts and Economic Statistics,Cabinet Office,80558702,"7,800.00",Civil Service Senior Leaders Scheme and the Future Leaders Scheme,Large,Programme
UK Statistics Authority,Office for National Statistics,19-May-16,External Training & Costs     ,National Accounts and Economic Statistics,Cabinet Office,80558702,"15,600.00",Civil Service Senior Leaders Scheme and the Future Leaders Scheme,Large,Programme
UK Statistics Authority,Office for National Statistics,19-May-16,External Training & Costs     ,National Accounts and Economic Statistics,Cabinet Office,80558702,"20,400.00",Civil Service Senior Leaders Scheme and the Future Leaders Scheme,Large,Programme
UK Statistics Authority,UK Statistics Authority,19-May-16,External Training & Costs     ,UK Statistics Authority,Cabinet Office,80558702,"15,600.00",Civil Service Senior Leaders Scheme and the Future Leaders Scheme,Large,Programme
UK Statistics Authority,Office for National Statistics,19-May-16,IT Purchases <2k,Business Services and Development,Computacenter (UK) Limited,80558708,"1,366.08",Information Management Services,Large,Programme
UK Statistics Authority,Office for National Statistics,19-May-16,IT Purchases <2k,Data Collection,Computacenter (UK) Limited,80558708,399.82,Information Management Services,Large,Programme
UK Statistics Authority,Office for National Statistics,19-May-16,IT Purchases <2k,Data Collection,Computacenter (UK) Limited,80558708,166.63,Information Management Services,Large,Programme
UK Statistics Authority,Office for National Statistics,19-May-16,IT Purchases <2k,Digital Services Technology and Methodology,Computacenter (UK) Limited,80558708,166.63,Information Management Services,Large,Programme
UK Statistics Authority,Office for National Statistics,19-May-16,IT Purchases <2k,National Accounts and Economic Statistics,Computacenter (UK) Limited,80558708,376.45,Information Management Services,Large,Programme
UK Statistics Authority,Office for National Statistics,19-May-16,IT Purchases <2k,National Accounts and Economic Statistics,Computacenter (UK) Limited,80558708,399.82,Information Management Services,Large,Programme
UK Statistics Authority,Office for National Statistics,19-May-16,IT Purchases <2k,Portfolio Design,Computacenter (UK) Limited,80558708,"2,505.58",Information Management Services,Large,Programme
UK Statistics Authority,Office for National Statistics,19-May-16,IT Purchases <2k,Social and Analysis,Computacenter (UK) Limited,80558708,407.14,Information Management Services,Large,Programme
UK Statistics Authority,Office for National Statistics,19-May-16,IT Software Maintenance       ,Digital Services Technology and Methodology,Computacenter (UK) Limited,80558708,"220,080.00",Information Management Services,Large,Programme
UK Statistics Authority,Office for National Statistics,19-May-16,Software Pool 4yr,Digital Services Technology and Methodology,Computacenter (UK) Limited,80558708,"318,990.00",Information Management Services,Large,Programme
UK Statistics Authority,Office for National Statistics,19-May-16,Contractual Service Payments - Non IT,Finance,Ernst & Young Llp,80558710,"102,960.00",Information Management Services,Large,Programme
UK Statistics Authority,Office for National Statistics,19-May-16,Legal Fees (Except FMU),Business Services and Development,Government Legal Department,80558712,"47,203.99",Legal Services,Large,Programme
UK Statistics Authority,Office for National Statistics,19-May-16,Statistical Services/Surveys  ,Office of the Chief Economic Adviser,HM Treasury Group,80558713,"91,722.23",Statistical Services,Large,Programme
UK Statistics Authority,UK Statistics Authority,19-May-16,External Training & Costs     ,UK Statistics Authority,HM Treasury Group,80558713,63,Statistical Services,Large,Programme
UK Statistics Authority,Office for National Statistics,19-May-16,GSS Fast Stream Recruitment,GSS Fast Stream Recruitment,HMRC,80558714,"47,520.00", GSS Fast Stream Recruitment ,Large,Programme
UK Statistics Authority,Office for National Statistics,19-May-16,Specialist Contractors IT,Digital Services Technology and Methodology,Methods Digital Ltd,80558717,"89,100.00",Information Management Services,Large,Programme
UK Statistics Authority,Office for National Statistics,19-May-16,Specialist Contractors IT,Digital Services Technology and Methodology,Methods Digital Ltd,80558717,853.54,Information Management Services,Large,Programme
UK Statistics Authority,Office for National Statistics,19-May-16,FM Contract Payments,Corporate Support,Mitie Facilities Services Ltd,80558719,"429,622.80", Facilities Management Services ,Large,Programme
UK Statistics Authority,Office for National Statistics,19-May-16,Agency Staff,Census,Parity Resources Limited,80558721,"3,052.01",Information Management Services,Large,Programme
UK Statistics Authority,Office for National Statistics,19-May-16,Specialist Contractors IT,Digital Services Technology and Methodology,Parity Resources Limited,80558721,"1,438.16",Information Management Services,Large,Programme
UK Statistics Authority,Office for National Statistics,19-May-16,Specialist Contractors IT,Digital Services Technology and Methodology,Parity Resources Limited,80558721,"1,342.30",Information Management Services,Large,Programme
UK Statistics Authority,Office for National Statistics,19-May-16,Specialist Contractors IT,Digital Services Technology and Methodology,Parity Resources Limited,80558721,"8,530.40",Infrastructure and software assurance ,Large,Programme
UK Statistics Authority,Office for National Statistics,19-May-16,Specialist Contractors Non IT,Census,Parity Resources Limited,80558721,"13,710.52",Information Management Services,Large,Programme
UK Statistics Authority,Office for National Statistics,19-May-16,Travel & Subsistence,Corporate Support,Redfern Travel,80558723,"43,730.68",Travel and Accommodation Booking Service,SME,Programme
UK Statistics Authority,Office for National Statistics,19-May-16,IT Maintenance Hardware       ,Digital Services Technology and Methodology,Stone Computers,80558726,"4,555.20",Infrastructure and software assurance ,Large,Programme
UK Statistics Authority,Office for National Statistics,19-May-16,IT Purchases <2k,Digital Services Technology and Methodology,Stone Computers,80558726,859.55,Infrastructure and software assurance ,Large,Programme
UK Statistics Authority,Office for National Statistics,19-May-16,IT Purchases >2k,Digital Services Technology and Methodology,Stone Computers,80558726,"33,499.20",Infrastructure and software assurance ,Large,Programme
UK Statistics Authority,Office for National Statistics,19-May-16,Statistical Services/Surveys  ,National Accounts and Economic Statistics,TNS UK Ltd,80558729,"187,831.20",Statistical Services,Large,Programme
UK Statistics Authority,Office for National Statistics,20-May-16,IT Bureau Services            ,Digital Services Technology and Methodology,Fujitsu Services Ltd,80558736,"99,581.29",Information Management Services,Large,Programme
UK Statistics Authority,Office for National Statistics,25-May-16,Capital Major Works >25k      ,Business Services and Development,Central Roofing Ltd,80559233,"47,242.06",Newport Building Major Works,SME,Programme
UK Statistics Authority,Office for National Statistics,25-May-16,Consultants Non IT,Social and Analysis,Equiniti Limited,80559239,"73,345.42",Information Management Services,Large,Programme
UK Statistics Authority,Office for National Statistics,25-May-16,IT Software Maintenance       ,Digital Services Technology and Methodology,IBM United Kingdom Ltd,80559244,"65,530.01",Information Management Services,Large,Programme
UK Statistics Authority,Office for National Statistics,25-May-16,Specialist Contractors IT,Digital Services Technology and Methodology,Indigoblue,80559245,"48,000.00",Information Management Services,Large,Programme
UK Statistics Authority,Office for National Statistics,25-May-16,Specialist Contractors IT,Business Services and Development,LA International,80559248,"26,829.70",Information Management Services,SME,Programme
UK Statistics Authority,Office for National Statistics,25-May-16,Specialist Contractors Non IT,Business Services and Development,LA International,80559248,"7,030.98",Information Management Services,SME,Programme
UK Statistics Authority,Office for National Statistics,25-May-16,Specialist Contractors IT,Digital Services Technology and Methodology,Methods Digital Ltd,80559251,"55,620.00",Information Management Services,Large,Programme
UK Statistics Authority,Office for National Statistics,25-May-16,Major Works Over 25k         ,Business Services and Development,Paramount Office Interiors Ltd,80559252,"21,527.73",Newport Building Major Works,SME,Programme
UK Statistics Authority,Office for National Statistics,25-May-16,Major Works Over 25k         ,Business Services and Development,Paramount Office Interiors Ltd,80559252,"61,531.40",Newport Building Major Works,SME,Programme
UK Statistics Authority,Office for National Statistics,25-May-16,Major Works Over 25k         ,Property Newport,Paramount Office Interiors Ltd,80559252,"3,109.39",Newport Building Major Works,SME,Programme
UK Statistics Authority,Office for National Statistics,26-May-16,Telecomms                     ,Data Collection,BT Global Services,80559755,"5,476.92",Information Management Services,Large,Programme
UK Statistics Authority,Office for National Statistics,26-May-16,Telecomms                     ,Digital Services Technology and Methodology,BT Global Services,80559755,"21,120.00",Information Management Services,Large,Programme
UK Statistics Authority,Office for National Statistics,26-May-16,Specialist Contractors IT,Digital Services Technology and Methodology,E Synergy Solutions,80559759,"125,364.00",Information Management Services,SME,Programme
UK Statistics Authority,Office for National Statistics,26-May-16,Travel & Subsistence,Corporate Support,Redfern Travel,80559770,"38,473.64",Travel and Accommodation Booking Service,SME,Programme
UK Statistics Authority,Office for National Statistics,27-May-16,Contractual Service Payments - IT,Digital Services Technology and Methodology,Kainos,80559792,"208,606.40",Information Management Services,Large,Programme
UK Statistics Authority,Office for National Statistics,27-May-16,Major Works Over 25k         ,Business Services and Development,Mitie Facilities Services Ltd,80559793,"9,864.00",Newport Building Major Works,Large,Programme
UK Statistics Authority,Office for National Statistics,27-May-16,Specialist Property Inspect   ,Business Services and Development,Mitie Facilities Services Ltd,80559793,"5,435.88", Facilities Management Services ,Large,Programme
UK Statistics Authority,Office for National Statistics,27-May-16,Specialist Property Inspect   ,Property Newport,Mitie Facilities Services Ltd,80559793,"13,200.12", Facilities Management Services ,Large,Programme
UK Statistics Authority,Office for National Statistics,31-May-16,Specialist Contractors IT,Digital Services Technology and Methodology,E Synergy Solutions,80560081,"25,401.60",Information Management Services,SME,Programme
UK Statistics Authority,Office for National Statistics,31-May-16,Specialist Contractors IT,Digital Services Technology and Methodology,E Synergy Solutions,80560081,"8,164.80",Information Management Services,SME,Programme
